Cogmind - Beta 10.2 @@@ ROGUE MODE // 2021.10.30 @ 15:12:39 Player: ZEROAFFEX Result: Destroyed by D-53 Grenadier with Mini Grenade Launcher Performance ------------- Evolutions (0) 0 Regions Visited (2) 400 Robots Destroyed (11) 55 Value Destroyed (112) 112 Prototype IDs (0) 0 Alien Tech Used (0) 0 Bonus (-40) -40 TOTAL SCORE: 527 Bonus ------- Friendly Fire -40 Cogmind --------- Core Integrity 0/250 Matter 149/300 Energy 91/100 System Corruption 7% Temperature Cool (182) Movement Core (50) Location -10/Mines Parts ------- > --- POWER (1) -------- (None) > --- PROPULSION (2) --- (None) > --- UTILITY (2) ------ (None) > --- WEAPON (2) ------- (None) > --- INVENTORY (4) ---- Medium Storage Unit Light Assault Rifle Light Assault Rifle Light Assault Rifle Peak State ------------ > --- POWER ------------ Light Ion Engine > --- PROPULSION ------- Light Treads Compact Wheel > --- UTILITY ---------- Large Storage Unit Large Storage Unit > --- WEAPON ----------- Light Assault Rifle Bore Cannon > --- INVENTORY -------- Ion Engine Light Ion Engine Light Treads Light Treads Small Storage Unit Medium Storage Unit Medium Storage Unit Light Assault Rifle Light Assault Rifle Light Assault Rifle Light Assault Rifle Grenade Launcher Grenade Launcher [Rating: 12] Favorites ----------- Power Light Ion Engine Engine Light Ion Engine Propulsion Light Treads Treads Light Treads Wheel Wheel Utility Large Storage Unit Storage Large Storage Unit Weapon Light Assault Rifle Energy Gun EM Pulse Gun Ballistic Gun Light Assault Rifle Ballistic Cannon Bore Cannon Launcher Grenade Launcher Build | -11 -10 -10 ------- Run | Scr Mat Min Slots Evolved . | . . . Power . | . . . Propulsion . | . . . Utility . | . . . Weapon . | . . . Parts Attached 30 | 7 6 17 Power 4 | 1 . 3 Engine 4 | 1 . 3 Core . | . . . Reactor . | . . . Propulsion 6 | 3 . 3 Treads 3 | 1 . 2 Leg . | . . . Wheel 3 | 2 . 1 Hover . | . . . Flight . | . . . Utility 5 | 1 4 . Device . | . . . Storage 5 | 1 4 . Processor . | . . . Hackware . | . . . Protection . | . . . Artifact . | . . . Weapon 15 | 2 2 11 Energy Gun 2 | 1 . 1 Energy Cannon . | . . . Ballistic Gun 7 | 1 2 4 Ballistic Cannon 1 | . . 1 Launcher 5 | . . 5 Special Weapon . | . . . Impact Weapon . | . . . Slashing Weapon . | . . . Piercing Weapon . | . . . Special Melee Weapon . | . . . Unidentified Prototypes . | . . . Parts Lost 13 | . . 13 Power 3 | . . 3 Propulsion 5 | . . 5 Utility . | . . . Weapon 5 | . . 5 Highest Loss Streak 12 | . . 12 Average Slot Usage (%) 96 | . 97 85 Engine 13 | . 14 10 Treads 13 | . 14 12 Wheel 13 | . 14 8 Storage 25 | . 25 28 Energy Gun 12 | . 14 . Ballistic Gun 14 | . 14 15 Naked Turns 1 | . . 1 Heaviest Build 38 | 10 38 37 Greatest Support 20 | 20 20 20 Greatest Overweight (x) 3 | . 3 2 Average Overweight (x) 1 | . 2 1 Largest Inventory Capacity 16 | 6 16 16 Average Capacity 12 | 5 12 15 Most Carried 13 | 4 13 13 Average Carried 8 | 2 9 11 Final Capacity 16 | 6 16 4 Final Carried 13 | 4 13 4 Class Distribution -------------------- 100% | Mutant Dominant Class ---------------- Mutant | -10/Materials Mutant | -10/Mines Resources | -11 -10 -10 ----------- Run | Scr Mat Min Matter Collected 413 | 222 135 56 Remotely . | . . . Salvage Created 249 | . 170 79 Parts 19 | . 14 5 Haulers Intercepted 1 | . 1 . Recyclers Shooed . | . . . Parts Field Recycled . | . . . Retrieved Matter . | . . . Parts Self-Destructed . | . . . Prevented . | . . . Kills | -11 -10 -10 ------- Run | Scr Mat Min Combat Hostiles Destroyed 20 | . 7 13 Guns 8 | . 6 2 Cannons 1 | . . 1 AOE 11 | . 1 10 Classes Destroyed 3 | . 2 1 Hauler 1 | . 1 . Swarmer 10 | . 7 3 Assembled 10 | . . 10 Best Kill Streak 10 | . 3 10 Combat Bots Only 10 | . 3 10 Max Kills in Single Turn 4 | . 1 4 Gunslinging . | . . . Exploded 4 | . 1 4 Melee . | . . . Uniques/NPCs Destroyed . | . . . Combat | -11 -10 -10 -------- Run | Scr Mat Min Damage Taken 1423 | . 208 1215 Core 290 | . 36 254 Absorbed by Shields . | . . . Core Remaining (%) 100 | 100 . . Volleys Fired 40 | . 27 13 Largest 2 | . 2 2 Hottest 87 | . 60 87 Shots Fired 77 | . 54 23 Gun 67 | . 54 13 Cannon 3 | . . 3 Launcher 7 | . . 7 Special . | . . . Kinetic 41 | . 27 14 Thermal . | . . . Explosive 7 | . . 7 Electromagnetic 29 | . 27 2 Robot Hit Streak 10 | . 5 10 Robot Miss Streak 5 | . 5 2 Penetration Max . | . . . Secondary Targets 2 | . 1 1 Max Gunslinging Chain 1 | . 1 1 Shots Hit Robots 41 | . 27 14 Core Hits 40 | . 10 30 Critical Hits 2 | . . 2 Critical Kills 1 | . . 1 Critical Parts Destroyed 1 | . . 1 Melee Attacks . | . . . Impact . | . . . Slashing . | . . . Piercing . | . . . Sneak Attacks . | . . . Combat Hostiles . | . . . Follow-up Attacks . | . . . Damage Inflicted 1271 | . 352 919 Guns 419 | . 320 99 Cannons 51 | . . 51 Explosions 801 | . 32 769 Melee . | . . . Ramming . | . . . Kinetic 221 | . 94 127 Thermal 32 | . 32 . Explosive 769 | . . 769 Electromagnetic 249 | . 226 23 Impact . | . . . Slashing . | . . . Piercing . | . . . Highest Corruption 7 | . . 7 Average Corruption 6 | . . 6 Corruption Purged . | . . . Effects 2 | . . 2 Misfires 1 | . . 1 Targeting Errors 1 | . . 1 Overload Shots . | . . . Overflow Damage 38 | . . 38 Projectiles . | . . . Explosions 38 | . . 38 Melee . | . . . Knockbacks 1 | . . 1 Impact . | . . . Kinetic 1 | . . 1 Secondary . | . . . Self-Inflicted Damage 112 | . 31 81 Shots 5 | . 1 4 Rammed . | . . . Targets Rammed . | . . . Kicked . | . . . Crushed . | . . . Highest Temperature 371 | . 40 371 Average Temperature 81 | . 19 195 Received Heat Transfer 460 | . . 460 Effects 1 | . . 1 Damage (minor) 1 | . . 1 Siege Activations . | . . . Robots Corrupted . | . . . Combat Hostiles . | . . . Parts Fried . | . . . Impact Corruptions . | . . . Robots Melted . | . . . Combat Hostiles . | . . . Parts Melted . | . . . Heat Transferred 50 | . 50 . Parts Sabotaged . | . . . Parts Stolen . | . . . Parts Stripped . | . . . Power Chain Reactions 1 | . 1 . Missiles Intercepted . | . . . Alert | -11 -10 -10 ------- Run | Scr Mat Min Peak Influence 343 | . 343 208 Initial 133 | . . 133 Average 108 | . 112 182 Maximum Alert Level 1 | . 1 1 Low Security (%) 74 | 100 73 50 Level 1 25 | . 26 49 Level 2 . | . . . Level 3 . | . . . Level 4 . | . . . Level 5 . | . . . High Security . | . . . Max Security . | . . . Squads Dispatched . | . . . Investigation . | . . . Extermination . | . . . Reinforcement . | . . . Assault . | . . . Garrison . | . . . Intercept . | . . . Construction Impeded . | . . . Haulers Reinforced . | . . . Stealth | -11 -10 -10 --------- Run | Scr Mat Min Distress Signals 1 | . 1 . Communications Jammed . | . . . Distress Signals . | . . . Times Spotted 42 | . 17 25 Peak Tracking Total 14 | . 8 14 Tactical Retreats 2 | . 2 . Traps | -11 -10 -10 ------- Run | Scr Mat Min Traps Triggered . | . . . Indirectly . | . . . Trap Hack Attempts . | . . . Triggered . | . . . Disarmed 6 | . 6 . Reprogrammed . | . . . Reused . | . . . Traps Extracted . | . . . Installed . | . . . Triggered . | . . . Machines | -11 -10 -10 ---------- Run | Scr Mat Min Machines Disabled 1 | . 1 . Max in Single Turn 1 | . 1 . Machines Sabotaged . | . . . Garrisons Compromised . | . . . Overloaded Fab Kills . | . . . Fab Network Shutdowns . | . . . Hacking | -11 -10 -10 --------- Run | Scr Mat Min Machines Accessed 7 | . 7 . Terminals 7 | . 7 . Fabricators . | . . . Repair Stations . | . . . Recycling Units . | . . . Scanalyzers . | . . . Garrison Access . | . . . Total Hacks 28 | . 28 . Successful 25 | . 25 . Failed 3 | . 3 . Catastrophic . | . . . Database Lockouts . | . . . Manual 18 | . 18 . Terminals 28 | . 28 . Fabricators . | . . . Repair Stations . | . . . Recycling Units . | . . . Scanalyzers . | . . . Garrison Access . | . . . Terminal Hacks 12 | . 12 . Record 3 | . 3 . Robot Analysis 1 | . 1 . Locate Traps 3 | . 3 . Disarm Traps 1 | . 1 . Surveillance Status 1 | . 1 . Zone Layout 3 | . 3 . Fabricator Hacks . | . . . Repair Station Hacks . | . . . Recycling Unit Hacks . | . . . Scanalyzer . | . . . Garrison Access Hacks . | . . . Unauthorized Hacks 13 | . 13 . Terminals 13 | . 13 . Track 6 | . 6 . Botnet 6 | . 6 . Detonate 1 | . 1 . Fabricators . | . . . Repair Stations . | . . . Recycling Units . | . . . Scanalyzers . | . . . Garrison Access . | . . . Data Cores Recovered . | . . . Used . | . . . Hacking Detections 6 | . 6 . Full Trace Events 2 | . 2 . Feedback Events . | . . . Feedback Blocked . | . . . Robot Schematics Acquired . | . . . Robots Built . | . . . Matter . | . . . Time . | . . . Total Robot Build Rating . | . . . Part Schematics Acquired . | . . . Parts Built . | . . . Matter . | . . . Time . | . . . Total Part Build Rating . | . . . Parts Repaired . | . . . Time . | . . . Parts Recycled . | . . . Recycled Matter . | . . . Retrieved Matter . | . . . Retrieved Components . | . . . Parts Scanalyzed . | . . . Part Schematics Acquired . | . . . Parts Damaged . | . . . Bothacking | -11 -10 -10 ------------ Run | Scr Mat Min Used RIF Installer . | . . . Robots Hacked . | . . . Non-combat . | . . . Combat . | . . . Robot Hacks Applied . | . . . Relay Couplers Released . | . . . Robots Rewired . | . . . Allies Hacked . | . . . Hacks Repelled . | . . . Allies | -11 -10 -10 -------- Run | Scr Mat Min Total Allies . | . . . Largest Group . | . . . Highest-Rated Group . | . . . Highest-Rated Ally . | . . . Total Orders . | . . . Ally Attacks . | . . . Total Damage . | . . . Kills . | . . . Allies Corrupted . | . . . Allies Melted . | . . . Intel | -11 -10 -10 ------- Run | Scr Mat Min Robot Analysis Total 1 | . 1 . Derelict Logs Recovered . | . . . Drone Launches . | . . . Drone Recoveries . | . . . Exploration | -11 -10 -10 ------------- Run | Scr Mat Min Turns Passed 931 | 81 773 77 Spaces Moved 580 | 45 516 19 Core 6 | 3 . 3 Treads 209 | 42 166 1 Legs . | . . . Wheels 365 | . 350 15 Hover . | . . . Flight . | . . . Fastest Speed 50 | 50 100 50 Average Speed 129 | 152 127 112 Slowest Speed 180 | 160 180 180 Overloaded Moves . | . . . Propulsion Burnouts . | . . . Robots Hopped . | . . . Cave-ins Triggered . | . . . Exploration Rate (%) 29 | 4 69 14 Regions Visited 2 Branch Regions 1 Pre-discovered Areas . | . . . Known Exits Taken . | . . . Unknown Exits Taken 2 | 1 1 . Scrap Searched . | . . . Spaces Dug . | . . . Terrain Destroyed 67 | . 3 64 Melee . | . . . Projectile 3 | . . 3 AOE 64 | . 3 61 Terrain Rammed . | . . . Walls Destroyed . | . . . Machines Disabled . | . . . Actions | -11 -10 -10 --------- Run | Scr Mat Min Total 680 | 54 577 49 Wait 25 | . 25 . Move 578 | 44 515 19 Hop . | . . . Pick Up 7 | 3 4 . Fast Attach 8 | 6 1 1 Attach 8 | . . 8 Detach . | . . . Swap 14 | 1 5 8 Drop . | . . . Fire 40 | . 27 13 Melee . | . . . Ram . | . . . Kick . | . . . Crush . | . . . Escape Stasis . | . . . Rewire . | . . . Trap . | . . . Miscellaneous . | . . . Route ------- -11/Scrapyard -10/Materials (discovered 2 exits: [*Mat] / [*Min]) -10/Mines History --------- Turn | Location | Event 13 | -11/Scrapyard | Discovered new exit (range 12) 82 | -11/Scrapyard | Entered Materials 303 | -10/Materials | Build established: Mutant 393 | -10/Materials | Discovered new exit (range 16) 765 | -10/Materials | Discovered new exit (range 15) 855 | -10/Materials | Entered Mines 880 | -10/Mines | Assembled infested the area 885 | -10/Mines | Assisted by a Guerilla fighting off Assembled 923 | -10/Mines | Core integrity fell below 50% 931 | -10/Mines | Released all parts (3) 932 | -10/Mines | Core integrity fell below 20% 932 | -10/Mines | Destroyed by D-53 Grenadier with Mini Grenade Launcher Last Messages --------------- 00918_ Destroyed Bore Cannon. 00920_ The unstable cave ceiling collapses. 00920_ Grenade Launcher destroyed. 00920_ Ion Engine destroyed. 00922_ Lgt. Ion Engine destroyed. 00923_ The unstable cave ceiling collapses. 00923_ as-29708 destroyed. 00923_ as-18360 destroyed. 00924_ System corrupted: Lgt. Assault Rifle targeting data glitched. 00926_ Lgt. Treads destroyed. 00929_ Acquired 31 matter. 00929_ as-50803 destroyed. 00929_ U-05 Engineer lays Concrete. 00929_ Lgt. Treads destroyed. 00930_ Lgt. Assault Rifle destroyed. 00930_ U-05 Engineer lays Concrete. 00931_ The unstable cave ceiling collapses. 00931_ Released Lgt. Assault Rifle. 00931_ Released Lrg. Storage Unit. 00931_ U-05 Engineer lays Concrete. Map ----- +----------------------------------------------------+ | ?????????????????????????????????????? | | ?????????????????????????????????????? | | ?????????????????????????????????????? | | ?????????????????????????????????????? | | ????????????????##########???????????? | | ????????????????# #???????????? | | ????????????????# """ #???????????? | | ????????????????# """ #???????????? | | ????????????????# """ #???????????? | | ????????????????# #???????????? | | ????????????????# #???????????? | | ?????????????#??# #???????????? | | ?????????????# ## #???????????? | | ?????????????# t #???????????? | | ?????????????####u #???????????? | | ????????????????# #???????????? | | ????????????????# d * #???????????? | | ????????????????# d ###???????????? | | ????????????????# [ #?????????????? | | ????????????????# ##??????????#??? | | ?????????????????# ##??????? #??? | | ?????????????????# ####### $###? | | ?????????????????# #? | | ?????????????????# #? | | ?????????????????# = #? | | ??????????????????# ![! @ #? | | ?????????????????# !! #? | | ?????????????????## #? | | ??????????????????## #? | | ??????????????????# % #? | | ??????????????????# ######### ##? | | ??????????????????# "??????????? | | ??????????????????## # ?????????? | | ??????????????????? a # ????????? | | ??????????????????##aa a #? #???????? | | ???????????????????## a #??#???????? | | ???????????????????## % ###??????????? | | ????????????????????# ##????????????? | | ????????????????????# %??????????????? | | ???????????????????? ??????????????? | | ????????????????????? ??????????????? | | ?????????????????????????????????????? | | ?????????????????????????????????????? | | ?????????????????????????????????????? | | ?????????????????????????????????????? | | ?????????????????????????????????????? | | ?????????????????????????????????????? | | | | | | | +----------------------------------------------------+ Best States ------------- Heat Dissipation 25 Energy Generation 10 Energy Capacity 250 Matter Stores 300 Matter Capacity 300 Sight Range 16 Terrain Scan Density 10 Evasion (%) 40 Recoil Reduction 2 Item Schematics ----------------- None Robot Schematics ------------------ None Fabricated ------------ Nothing Alien Tech Used ----------------- None Achievements -------------- Maximum Efficiency Quantum Hacking Challenges ------------ None Game ------ Seed SuperchargedHeartGenerator Manual? 0 Play Time 00:18:14 Cumulative 46.5 hours Start 2021.10.30 @ 14:56:37 End 2021.10.30 @ 15:12:39 Sessions 1 Manual Loads 0 Difficulty Rogue Special Mode None Game No. 41 Rogue 39 Adventurer 2 Explorer 0 Win Type - Total 0 Types 0/0/0/0/0/0/0/0/0 Lore% 28 Gallery% 29 Achievement% 28 Wizard Run 0 Options --------- ASCII 0 Keyboard 0 Movement Mouse Keybinds 1 Fullscreen 1 Font 18/TerminusBold Map View 76x50 Tactical HUD 1 Map Filters NONE Filters NONE Steam 1 RUN: 80410832-66db-4d82-b84a-b91b066865f0